fUST/lending_fUST_20251002
["ID","MTS","AMOUNT","RATE_DAILY","PERIOD"]
[388722251,1759335052419,-500.15,0.00020821,2]
[388722252,1759335052428,-1425.73,0.00020821,2]
[388722253,1759335052437,-500.0,0.00020821,2]
[388722254,1759335052447,-537.26,0.00020821,2]
[388722255,1759335052457,-500.0,0.00020821,2]
[388722256,1759335052467,-500.0,0.00020821,2]
[388722257,1759335052476,-2720.2,0.00020821,2]
[388722258,1759335052485,-500.0,0.00020821,2]
[388722259,1759335052494,-500.0,0.00020821,2]
[388722260,1759335052504,-500.0,0.00020821,2]
[388722261,1759335052513,-3405.88,0.00020821,2]
[388722262,1759335052522,-500.0,0.00020821,2]
[388722263,1759335052531,-500.0,0.00020821,2]
[388722264,1759335052541,-1179.53,0.00020821,2]
[388722265,1759335052550,-1218.29,0.00020821,2]
[388722266,1759335052559,-500.0,0.00020821,2]
[388722267,1759335052568,-927.39,0.00020821,2]
[388722268,1759335052578,-896.28,0.00020821,2]
[388722269,1759335052587,-500.0,0.00020821,2]
[388722270,1759335052597,-500.0,0.00020821,2]
[388722271,1759335052606,-709.86,0.00020821,2]
[388722272,1759335052616,-500.0,0.00020821,2]
[388722273,1759335052625,-500.0,0.00020821,2]
[388722274,1759335052635,-1845.75,0.00020821,2]
[388722275,1759335052646,-500.0,0.00020821,2]
[388722276,1759335052655,-500.0,0.00020821,2]
[388722277,1759335052665,-696.0,0.00020821,2]
[388722278,1759335052674,-500.0,0.00020821,2]
[388722279,1759335052685,-1315.22,0.00020821,2]
[388722280,1759335052695,-500.0,0.00020821,2]
[388722281,1759335052706,-2639.23,0.00020821,2]
[388722282,1759335052716,-504.31,0.00020821,2]
[388722283,1759335052725,-1397.47,0.00020821,2]
[388722284,1759335052736,-500.0,0.00020821,2]
[388722285,1759335052746,-786.61,0.00020821,2]
[388722286,1759335052757,-500.0,0.00020821,2]
[388722287,1759335052768,-6859.71,0.00020821,2]
[388722288,1759335052778,-500.0,0.00020821,2]
[388722289,1759335052788,-848.92,0.00020821,2]
[388722290,1759335052799,-1394.86,0.00020821,2]
[388722291,1759335052809,-818.92,0.00020821,2]
[388722292,1759335052819,-1705.81,0.00020821,2]
[388722293,1759335052833,-500.0,0.00020821,2]
[388722294,1759335052843,-500.0,0.00020821,2]
[388722295,1759335052853,-500.0,0.00020821,2]
[388722296,1759335052863,-670.79,0.00020821,2]
[388722297,1759335052872,-857.73,0.00020821,2]
[388722298,1759335052882,-500.0,0.00020821,2]
[388722299,1759335052892,-500.0,0.00020821,2]
[388722300,1759335052903,-643.98,0.00020821,2]
[388722301,1759335052913,-500.0,0.00020821,2]
[388722302,1759335052923,-1015.09,0.00020821,2]
[388722303,1759335052932,-500.0,0.00020821,2]
[388722304,1759335052942,-500.0,0.00020821,2]
[388722305,1759335052953,-870.52,0.00020821,2]
[388722306,1759335052962,-610.48,0.00020821,2]
[388722307,1759335052972,-774.99,0.00020821,2]
[388722308,1759335052981,-500.0,0.00020821,2]
[388722309,1759335052991,-500.0,0.00020821,2]
[388722310,1759335053000,-692.94,0.00020821,2]
[388722311,1759335053010,-500.0,0.00020821,2]
[388722312,1759335053020,-500.0,0.00020821,2]
[388722313,1759335053031,-943.16,0.00020821,2]
[388722314,1759335053041,-500.0,0.00020821,2]
[388722315,1759335053051,-500.0,0.00020821,2]
[388722316,1759335053060,-1171.23,0.00020821,2]
[388722317,1759335053071,-613.54,0.00020821,2]
[388722318,1759335053081,-1988.09,0.00020821,2]
[388722319,1759335053091,-1268.9,0.00020821,2]
[388722320,1759335053101,-696.81,0.00020821,2]
[388722321,1759335053111,-1090.51,0.00020821,2]
[388722322,1759335053120,-2196.17,0.00020821,2]
[388722323,1759335053129,-500.0,0.00020821,2]
[388722324,1759335053139,-500.0,0.00020821,2]
[388722325,1759335053149,-3394.81,0.00020821,2]
[388722326,1759335053159,-952.1,0.00020821,2]
[388722327,1759335053169,-559.38279712,0.00020821,2]
[388722328,1759335053179,-774.39,0.00020821,2]
[388722329,1759335053188,-556.67,0.00020821,2]
[388722330,1759335053198,-500.0,0.00020821,2]
[388722331,1759335053208,-863.24,0.00020821,2]
[388722332,1759335053218,-729.16,0.00020821,2]
[388722333,1759335053230,-1104.24,0.00020821,2]
[388722334,1759335053240,-500.0,0.00020821,2]
[388722335,1759335053250,-2984.12,0.00020821,2]
[388722336,1759335053260,-1866.99,0.00020821,2]
[388722337,1759335053270,-1374.41,0.00020821,2]
[388722338,1759335053279,-1500.0,0.00020827,2]
[388722339,1759335053289,-466.0,0.00020893,2]
[388722340,1759335053299,-1000.0,0.000209,2]
[388722341,1759335053309,-160.0,0.00021037,2]
[388722342,1759335053318,-531.0,0.0002105,2]
[388722343,1759335053328,-500.0,0.00021051,2]
[388722344,1759335053338,-1013.86,0.00021051,2]
[388722345,1759335053348,-2062.08,0.00021051,2]
[388722346,1759335053358,-500.0,0.00021051,2]
[388722347,1759335053368,-1521.58,0.00021051,2]
[388722348,1759335053378,-500.0,0.00021051,2]
[388722349,1759335053388,-229.12636251,0.00021068,2]
[388722350,1759335053398,-157.229,0.00021095,2]
[388722351,1759335053408,-500.0,0.00021095,2]
[388722352,1759335053418,-500.0,0.00021095,2]
[388722353,1759335053428,-500.0,0.00021095,2]
[388722354,1759335053438,-500.0,0.00021095,2]
[388722355,1759335053448,-684.19,0.00021095,2]
[388722356,1759335053459,-500.0,0.00021095,2]
[388722357,1759335053470,-500.0,0.00021095,2]
[388722358,1759335053479,-905.05,0.00021095,2]
[388722359,1759335053490,-500.0,0.00021095,2]
[388722360,1759335053501,-500.0,0.00021095,2]
[388722361,1759335053512,-602.37,0.00021095,2]
[388722362,1759335053523,-635.93,0.00021095,2]
[388722363,1759335053535,-625.0,0.00021095,2]
[388722364,1759335053547,-500.0,0.00021095,2]
[388722365,1759335053560,-500.0,0.00021095,2]
[388722366,1759335053573,-500.0,0.00021095,2]
[388722367,1759335053584,-500.0,0.00021095,2]
[388722368,1759335053596,-500.0,0.00021095,2]
[388722369,1759335053607,-274.788156,0.00021095,2]
[388722370,1759335053618,-539.8,0.00021095,2]
[388722371,1759335053630,-1062.22,0.00021095,2]
[388722372,1759335053643,-500.0,0.00021095,2]
[388722373,1759335053654,-1377.59,0.00021095,2]
[388722374,1759335053665,-500.0,0.00021095,2]
[388722375,1759335053675,-759.48,0.00021095,2]
[388722376,1759335053685,-500.0,0.00021095,2]
[388722377,1759335053695,-500.0,0.00021095,2]
[388722378,1759335053707,-500.0,0.00021095,2]
[388722379,1759335053717,-500.0,0.00021095,2]
[388722380,1759335053727,-500.0,0.00021095,2]
[388722381,1759335053738,-1321.83,0.00021095,2]
[388722382,1759335053748,-802.43,0.00021095,2]
[388722383,1759335053757,-500.0,0.00021095,2]
[388722384,1759335053767,-500.0,0.00021095,2]
[388722385,1759335053777,-646.41,0.00021095,2]
[388722386,1759335053787,-500.0,0.00021095,2]
[388722387,1759335053797,-1135.08,0.00021095,2]
[388722388,1759335053807,-712.18,0.00021095,2]
[388722389,1759335053817,-729.36,0.00021095,2]
[388722390,1759335053830,-500.0,0.00021095,2]
[388722391,1759335053839,-700.69,0.00021095,2]
[388722392,1759335053849,-500.15,0.00021095,2]
[388722393,1759335053858,-1425.73,0.00021095,2]
[388722394,1759335053869,-500.0,0.00021095,2]
[388722395,1759335053882,-537.26,0.00021095,2]
[388722396,1759335053892,-500.0,0.00021095,2]
[388722397,1759335053902,-435.19059318,0.00021095,2]
[388722398,1759335053913,-2720.2,0.00021095,2]
[388722399,1759335053922,-500.0,0.00021095,2]
[388722400,1759335053933,-500.0,0.00021095,2]
[388722401,1759335053942,-500.0,0.00021095,2]
[388722402,1759335053952,-3405.88,0.00021095,2]
[388722403,1759335053962,-500.0,0.00021095,2]
[388722404,1759335053972,-500.0,0.00021095,2]
[388722405,1759335053982,-1179.53,0.00021095,2]
[388722406,1759335053992,-1218.29,0.00021095,2]
[388722407,1759335054002,-500.0,0.00021095,2]
[388722408,1759335054012,-927.39,0.00021095,2]
[388722409,1759335054022,-896.28,0.00021095,2]
[388722410,1759335054031,-500.0,0.00021095,2]
[388722411,1759335054041,-500.0,0.00021095,2]
[388722412,1759335054051,-709.86,0.00021095,2]
[388722413,1759335054060,-500.0,0.00021095,2]
[388722414,1759335054070,-500.0,0.00021095,2]
[388722415,1759335054080,-1845.75,0.00021095,2]
[388722416,1759335054090,-500.0,0.00021095,2]
[388722417,1759335054100,-500.0,0.00021095,2]
[388722418,1759335054109,-696.0,0.00021095,2]
[388722419,1759335054119,-500.0,0.00021095,2]
[388722420,1759335054129,-1315.22,0.00021095,2]
[388722421,1759335054140,-500.0,0.00021095,2]
[388722422,1759335054150,-2639.23,0.00021095,2]
[388722423,1759335054161,-504.31,0.00021095,2]
[388722424,1759335054171,-1397.47,0.00021095,2]
[388722425,1759335054180,-500.0,0.00021095,2]
[388722426,1759335054190,-786.61,0.00021095,2]
[388722427,1759335054202,-500.0,0.00021095,2]
[388722428,1759335054212,-6859.71,0.00021095,2]
[388722429,1759335054222,-500.0,0.00021095,2]
[388722430,1759335054232,-848.92,0.00021095,2]
[388722431,1759335054241,-1394.86,0.00021095,2]
[388722432,1759335054251,-818.92,0.00021095,2]
[388722433,1759335054261,-1705.81,0.00021095,2]
[388722434,1759335054271,-500.0,0.00021095,2]
[388722435,1759335054280,-500.0,0.00021095,2]
[388722436,1759335054290,-500.0,0.00021095,2]
[388722437,1759335054300,-670.79,0.00021095,2]
[388722438,1759335054310,-857.73,0.00021095,2]
[388722439,1759335054319,-500.0,0.00021095,2]
[388722440,1759335054329,-500.0,0.00021095,2]
[388722441,1759335054339,-643.98,0.00021095,2]
[388722442,1759335054348,-500.0,0.00021095,2]
[388722443,1759335054358,-1015.09,0.00021095,2]
[388722444,1759335054368,-500.0,0.00021095,2]
[388722445,1759335054378,-533.27,0.00021095,2]
[388722446,1759335054387,-870.52,0.00021095,2]
[388722447,1759335054397,-610.48,0.00021095,2]
[388722448,1759335054406,-774.99,0.00021095,2]
[388722449,1759335054415,-500.0,0.00021095,2]
[388722450,1759335054425,-407.58229988,0.00021095,2]
[388722451,1759335054435,-692.94,0.00021095,2]
[388722452,1759335054444,-500.0,0.00021095,2]
[388722453,1759335054456,-500.0,0.00021095,2]
[388722454,1759335054466,-943.16,0.00021095,2]
[388722455,1759335054475,-500.0,0.00021095,2]
[388722456,1759335054485,-500.0,0.00021095,2]
[388722457,1759335054498,-613.54,0.00021095,2]
[388722458,1759335054509,-1171.23,0.00021095,2]
[388722459,1759335054519,-1988.09,0.00021095,2]
[388722460,1759335054529,-1268.9,0.00021095,2]
[388722461,1759335054539,-696.81,0.00021095,2]
[388722462,1759335054549,-1090.51,0.00021095,2]
[388722463,1759335054559,-2196.17,0.00021095,2]
[388722464,1759335054568,-233.75,0.00021095,2]
[388722465,1759335054578,-500.0,0.00021095,2]
[388722466,1759335054588,-3394.81,0.00021095,2]
[388722467,1759335054598,-952.1,0.00021095,2]
[388722468,1759335054608,-774.39,0.00021095,2]
[388722469,1759335054619,-556.67,0.00021095,2]
[388722470,1759335054628,-500.0,0.00021095,2]
[388722471,1759335054638,-863.24,0.00021095,2]
[388722472,1759335054648,-729.16,0.00021095,2]
[388722473,1759335054658,-1104.24,0.00021095,2]
[388722474,1759335054667,-500.0,0.00021095,2]
[388722475,1759335054677,-2984.12,0.00021095,2]
[388722476,1759335054687,-1866.99,0.00021095,2]
[388722477,1759335054697,-1374.41,0.00021095,2]
[388722478,1759335054708,-1000.0,0.00021116,2]
[388722479,1759335054717,-2000.0,0.00021116,2]
[388722480,1759335054727,-160.0,0.00021118,2]
[388722481,1759335054736,-160.0,0.00021118,2]
[388722482,1759335054746,-11436.40497654,0.00021231,2]
[388722483,1759335054757,-531.0,0.00021286,2]
[388722484,1759335054767,-3000.0,0.000213,2]
[388722485,1759335054777,-3000.0,0.0002131,2]
[388722486,1759335054788,-3000.0,0.0002132,2]
[388722487,1759335054799,-500.0,0.00021325,2]
[388722488,1759335054810,-1013.86,0.00021325,2]
[388722489,1759335054821,-2062.08,0.00021325,2]
[388722490,1759335054835,-500.0,0.00021325,2]
[388722491,1759335054845,-1521.58,0.00021325,2]
[388722492,1759335054855,-500.0,0.00021325,2]
[388722493,1759335054865,-3000.0,0.0002133,2]
[388722494,1759335054875,-168.0,0.00021339,2]
[388722495,1759335054885,-3000.0,0.0002134,2]
[388722496,1759335054896,-3000.0,0.0002135,2]
[388722497,1759335054906,-193.47294091,0.00021354,2]
[388722498,1759335054917,-773.89176366,0.00021354,2]
[388722499,1759335054926,-1741.25646823,0.00021354,2]
[388722500,1759335054937,-3095.56705464,0.00021354,2]
[388722501,1759335054947,-4836.82352287,0.00021354,2]
[388722502,1759335054958,-6965.02587293,0.00021354,2]
[388722503,1759335054968,-9470.69393072,0.00021354,2]
[388722504,1759335054978,-364.9566128,0.00021354,2]
[388722505,1759335054988,-1459.82645122,0.00021354,2]
[388722506,1759335055194,-3281.32490572,0.00021354,2]
[388722507,1759335055206,-3901.016384,0.0002136,2]
[388722508,1759335055216,-2500.0,0.00021364,2]
[388722509,1759335055226,-500.0,0.00021364,2]
[388722510,1759335055235,-500.0,0.00021369,2]
[388722511,1759335055246,-500.0,0.00021369,2]
[388722512,1759335055256,-500.0,0.00021369,2]
[388722513,1759335055266,-500.0,0.00021369,2]
[388722514,1759335055275,-684.19,0.00021369,2]
[388722515,1759335055285,-500.0,0.00021369,2]
[388722516,1759335055295,-500.0,0.00021369,2]
[388722517,1759335055305,-905.05,0.00021369,2]
[388722518,1759335055314,-500.0,0.00021369,2]
[388722519,1759335055324,-500.0,0.00021369,2]
[388722520,1759335055334,-602.37,0.00021369,2]
[388722521,1759335055343,-635.93,0.00021369,2]
[388722522,1759335055353,-625.0,0.00021369,2]
[388722523,1759335055362,-500.0,0.00021369,2]
[388722524,1759335055371,-500.0,0.00021369,2]
[388722525,1759335055380,-500.0,0.00021369,2]
[388722526,1759335055390,-500.0,0.00021369,2]
[388722527,1759335055399,-500.0,0.00021369,2]
[388722528,1759335055408,-539.8,0.00021369,2]
[388722529,1759335055418,-1062.22,0.00021369,2]
[388722530,1759335055427,-500.0,0.00021369,2]
[388722531,1759335055436,-1377.59,0.00021369,2]
[388722532,1759335055446,-500.0,0.00021369,2]
[388722533,1759335055457,-759.48,0.00021369,2]
[388722534,1759335055466,-500.0,0.00021369,2]
[388722535,1759335055475,-500.0,0.00021369,2]
[388722536,1759335055485,-285.88,0.00021369,2]
[388722537,1759335055494,-500.0,0.00021369,2]
[388722538,1759335055503,-500.0,0.00021369,2]
[388722539,1759335055513,-1321.83,0.00021369,2]
[388722540,1759335055522,-802.43,0.00021369,2]
[388722541,1759335055531,-500.0,0.00021369,2]
[388722542,1759335055540,-500.0,0.00021369,2]
[388722543,1759335055549,-646.41,0.00021369,2]
[388722544,1759335055559,-500.0,0.00021369,2]
[388722545,1759335055568,-1135.08,0.00021369,2]
[388722546,1759335055577,-712.18,0.00021369,2]
[388722547,1759335055586,-729.36,0.00021369,2]
[388722548,1759335055596,-500.0,0.00021369,2]
[388722549,1759335055605,-700.69,0.00021369,2]
[388722550,1759335055615,-500.15,0.00021369,2]
[388722551,1759335055626,-1425.73,0.00021369,2]
[388722552,1759335055636,-500.0,0.00021369,2]
[388722553,1759335055646,-537.26,0.00021369,2]
[388722554,1759335055655,-500.0,0.00021369,2]
[388722555,1759335055664,-2720.2,0.00021369,2]
[388722556,1759335055673,-500.0,0.00021369,2]
[388722557,1759335055683,-500.0,0.00021369,2]
[388722558,1759335055692,-500.0,0.00021369,2]
[388722559,1759335055701,-3405.88,0.00021369,2]
[388722560,1759335055711,-500.0,0.00021369,2]
[388722561,1759335055720,-249.36756973,0.00021369,2]
[388722562,1759335055730,-1179.53,0.00021369,2]
[388722563,1759335055739,-1218.29,0.00021369,2]
[388722564,1759335055749,-500.0,0.00021369,2]
[388722565,1759335055758,-927.39,0.00021369,2]
[388722566,1759335055767,-896.28,0.00021369,2]
[388722567,1759335055777,-500.0,0.00021369,2]
[388722568,1759335055786,-500.0,0.00021369,2]
[388722569,1759335055795,-709.86,0.00021369,2]
[388722570,1759335055805,-500.0,0.00021369,2]
[388722571,1759335055815,-500.0,0.00021369,2]
[388722572,1759335055827,-1845.75,0.00021369,2]
[388722573,1759335055837,-500.0,0.00021369,2]
[388722574,1759335055846,-500.0,0.00021369,2]
[388722575,1759335055856,-696.0,0.00021369,2]
[388722576,1759335055866,-1315.22,0.00021369,2]
[388722577,1759335055876,-500.0,0.00021369,2]
[388722578,1759335055885,-2639.23,0.00021369,2]
[388722579,1759335055894,-500.0,0.00021369,2]
[388722580,1759335055906,-504.31,0.00021369,2]
[388722581,1759335055915,-1397.47,0.00021369,2]
[388722582,1759335055925,-500.0,0.00021369,2]
[388722583,1759335055934,-786.61,0.00021369,2]
[388722584,1759335055943,-500.0,0.00021369,2]
[388722585,1759335055954,-6859.71,0.00021369,2]
[388722586,1759335055963,-500.0,0.00021369,2]
[388722587,1759335055973,-848.92,0.00021369,2]
[388722588,1759335055983,-1394.86,0.00021369,2]
[388722589,1759335055992,-818.92,0.00021369,2]
[388722590,1759335056001,-1705.81,0.00021369,2]
[388722591,1759335056011,-500.0,0.00021369,2]
[388722592,1759335056021,-500.0,0.00021369,2]
[388722593,1759335056030,-500.0,0.00021369,2]
[388722594,1759335056039,-670.79,0.00021369,2]
[388722595,1759335056049,-857.73,0.00021369,2]
[388722596,1759335056059,-500.0,0.00021369,2]
[388722597,1759335056068,-500.0,0.00021369,2]
[388722598,1759335056078,-643.98,0.00021369,2]
[388722599,1759335056087,-500.0,0.00021369,2]
[388722600,1759335056096,-1015.09,0.00021369,2]
[388722601,1759335056105,-500.0,0.00021369,2]
[388722602,1759335056115,-870.52,0.00021369,2]
[388722603,1759335056125,-610.48,0.00021369,2]
[388722604,1759335056134,-774.99,0.00021369,2]
[388722605,1759335056144,-500.0,0.00021369,2]
[388722606,1759335056153,-692.94,0.00021369,2]
[388722607,1759335056162,-500.0,0.00021369,2]
[388722608,1759335056171,-500.0,0.00021369,2]
[388722609,1759335056180,-943.16,0.00021369,2]
[388722610,1759335056190,-500.0,0.00021369,2]
[388722611,1759335056199,-500.0,0.00021369,2]
[388722612,1759335056210,-613.54,0.00021369,2]
[388722613,1759335056219,-1171.23,0.00021369,2]
[388722614,1759335056228,-1988.09,0.00021369,2]
[388722615,1759335056238,-1268.9,0.00021369,2]
[388722616,1759335056247,-696.81,0.00021369,2]
[388722617,1759335056257,-1090.51,0.00021369,2]
[388722618,1759335056266,-2196.17,0.00021369,2]
[388722619,1759335056276,-500.0,0.00021369,2]
[388722620,1759335056287,-3394.81,0.00021369,2]
[388722621,1759335056297,-952.1,0.00021369,2]
[388722622,1759335056306,-774.39,0.00021369,2]
[388722623,1759335056316,-556.67,0.00021369,2]
[388722624,1759335056325,-500.0,0.00021369,2]
[388722625,1759335056335,-863.24,0.00021369,2]
[388722626,1759335056345,-729.16,0.00021369,2]
[388722627,1759335056354,-1104.24,0.00021369,2]
[388722628,1759335056363,-282.34455364,0.00021369,2]
[388722629,1759335056373,-2984.12,0.00021369,2]
[388722630,1759335056382,-1866.99,0.00021369,2]
[388722631,1759335056391,-151.0,0.0002137,2]
[388722632,1759335056401,-151.0,0.0002137,2]
[388722633,1759335056411,-151.0,0.0002137,2]
[388722634,1759335056420,-151.0,0.0002137,2]
[388722635,1759335056430,-151.0,0.0002137,2]
[388722636,1759335056439,-151.0,0.0002137,2]
[388722637,1759335056449,-151.0,0.0002137,2]
[388722638,1759335056458,-151.0,0.0002137,2]
[388722639,1759335056468,-151.0,0.0002137,2]
[388722640,1759335056477,-151.0,0.0002137,2]
[388722641,1759335056487,-151.0,0.0002137,2]
[388722642,1759335056496,-151.0,0.0002137,2]
[388722643,1759335056505,-487.0,0.0002137,2]
[388722644,1759335056514,-151.0,0.0002137,2]
[388722645,1759335056523,-151.0,0.0002137,2]
[388722646,1759335056532,-151.0,0.0002137,2]
[388722647,1759335056541,-151.0,0.0002137,2]
[388722648,1759335056551,-151.0,0.0002137,2]
[388722649,1759335056560,-151.0,0.0002137,2]
[388722650,1759335056570,-195.75892033,0.0002137,2]
[388722651,1759335056579,-151.0,0.0002137,2]
[388722652,1759335056588,-151.0,0.0002137,2]
[388722653,1759335056598,-500.0,0.0002137,2]
[388722654,1759335056607,-188.92018006,0.0002137,2]
[388722655,1759335056617,-230.81523869,0.0002137,2]
[388722656,1759335056626,-153.78688761,0.0002137,2]
[388722657,1759335056635,-158.33962896,0.0002137,2]
[388722658,1759335056644,-151.0,0.0002137,2]
[388722659,1759335056653,-151.0,0.0002137,2]
[388722660,1759335056663,-252.53966276,0.0002137,2]
[388722661,1759335056672,-151.0,0.0002137,2]
[388722662,1759335056681,-151.0,0.0002137,2]
[388722663,1759335056691,-151.0,0.0002137,2]
[388722664,1759335056701,-151.0,0.0002137,2]
[388722665,1759335056710,-500.0,0.00021373,2]
[388722666,1759335056720,-500.0,0.00021373,2]
[388722667,1759335056730,-500.0,0.00021373,2]
[388722668,1759335056739,-501.78461422,0.00021373,2]
[388722669,1759335056749,-2000.0,0.00021375,2]
[388722670,1759335056758,-1000.0,0.000214,2]
[388722671,1759335056768,-193.378493,0.000214,2]
[388722672,1759335056777,-720.0,0.00021404,20]
[388722673,1759335056786,-168.0,0.00021484,2]
[388722674,1759335056795,-168.0,0.00021485,2]
[388722675,1759335056805,-84974.03002243,0.000215,27]
[388722676,1759335056814,-260.0,0.00021585,2]
[388722677,1759335056829,-500.0,0.00021599,2]
[388722678,1759335056838,-1013.86,0.00021599,2]
[388722679,1759335056847,-2062.08,0.00021599,2]
[388722680,1759335056857,-500.0,0.00021599,2]
[388722681,1759335056868,-1521.58,0.00021599,2]
[388722682,1759335056878,-500.0,0.00021599,2]
[388722683,1759335056887,-168.0,0.00021605,2]
[388722684,1759335056897,-979.0,0.0002162,2]
[388722685,1759335056906,-2156.0,0.0002162,2]
[388722686,1759335056915,-630.0,0.0002162,2]
[388722687,1759335056924,-410.0,0.0002162,2]
[388722688,1759335056934,-428.711,0.0002162,2]
[388722689,1759335056943,-153.566605,0.00021642,2]
[388722690,1759335056952,-500.0,0.00021643,2]
[388722691,1759335056962,-500.0,0.00021643,2]
[388722692,1759335056971,-500.0,0.00021643,2]
[388722693,1759335056981,-433.24985058,0.00021643,2]
[388722694,1759335056990,-500.0,0.00021643,2]
[388722695,1759335057000,-684.19,0.00021643,2]
[388722696,1759335057009,-500.0,0.00021643,2]
[388722697,1759335057019,-500.0,0.00021643,2]
[388722698,1759335057029,-500.0,0.00021643,2]
[388722699,1759335057039,-905.05,0.00021643,2]
[388722700,1759335057048,-500.0,0.00021643,2]
[388722701,1759335057058,-602.37,0.00021643,2]
[388722702,1759335057071,-635.93,0.00021643,2]
[388722703,1759335057082,-625.0,0.00021643,2]
[388722704,1759335057092,-347.02,0.00021643,2]
[388722705,1759335057101,-500.0,0.00021643,2]
[388722706,1759335057111,-488.61,0.00021643,2]
[388722707,1759335057121,-500.0,0.00021643,2]
[388722708,1759335057131,-500.0,0.00021643,2]
[388722709,1759335057140,-539.8,0.00021643,2]
[388722710,1759335057150,-1062.22,0.00021643,2]
[388722711,1759335057160,-500.0,0.00021643,2]
[388722712,1759335057169,-1377.59,0.00021643,2]
[388722713,1759335057178,-500.0,0.00021643,2]
[388722714,1759335057188,-759.48,0.00021643,2]
[388722715,1759335057197,-500.0,0.00021643,2]
[388722716,1759335057208,-500.0,0.00021643,2]
[388722717,1759335057217,-500.0,0.00021643,2]
[388722718,1759335057227,-500.0,0.00021643,2]
[388722719,1759335057236,-1321.83,0.00021643,2]
[388722720,1759335057246,-802.43,0.00021643,2]
[388722721,1759335057256,-500.0,0.00021643,2]
[388722722,1759335057266,-500.0,0.00021643,2]
[388722723,1759335057275,-646.41,0.00021643,2]
[388722724,1759335057285,-500.0,0.00021643,2]
[388722725,1759335057294,-1135.08,0.00021643,2]
[388722726,1759335057305,-712.18,0.00021643,2]
[388722727,1759335057315,-729.36,0.00021643,2]
[388722728,1759335057324,-500.0,0.00021643,2]
[388722729,1759335057333,-700.69,0.00021643,2]
[388722730,1759335057343,-500.15,0.00021643,2]
[388722731,1759335057353,-1425.73,0.00021643,2]
[388722732,1759335057362,-500.0,0.00021643,2]
[388722733,1759335057372,-537.26,0.00021643,2]
[388722734,1759335057382,-500.0,0.00021643,2]
[388722735,1759335057392,-2720.2,0.00021643,2]
[388722736,1759335057402,-500.0,0.00021643,2]
[388722737,1759335057411,-500.0,0.00021643,2]
[388722738,1759335057420,-500.0,0.00021643,2]
[388722739,1759335057430,-3405.88,0.00021643,2]
[388722740,1759335057439,-500.0,0.00021643,2]
[388722741,1759335057448,-1179.53,0.00021643,2]
[388722742,1759335057459,-1218.29,0.00021643,2]
[388722743,1759335057468,-500.0,0.00021643,2]
[388722744,1759335057478,-927.39,0.00021643,2]
[388722745,1759335057487,-896.28,0.00021643,2]
[388722746,1759335057497,-500.0,0.00021643,2]
[388722747,1759335057507,-500.0,0.00021643,2]
[388722748,1759335057516,-709.86,0.00021643,2]
[388722749,1759335057526,-500.0,0.00021643,2]
[388722750,1759335057537,-500.0,0.00021643,2]